[Event "*** Titled Tuesday 3|2 Blitz"]
[Site "Chess.com"]
[Date "2015.02.24"]
[Round "4"]
[White "tigrangharamian"]
[Black "GMHess"]
[Result "1/2-1/2"]
[WhiteElo "2505"]
[BlackElo "2500"]
[TimeControl "180+2"]
[EndTime "11:49:35 PST"]
[Termination "Game drawn - insufficient material"]

1. e4 {[%clk 0:03:00]} 1... e5 {[%clk 0:02:57.3]} 2. Nf3 {[%clk 0:03:01.1]} 2...
Nc6 {[%clk 0:02:58]} 3. Bb5 {[%clk 0:03:02.2]} 3... Nf6 {[%clk 0:02:57.6]} 4.
O-O {[%clk 0:03:00.6]} 4... Nxe4 {[%clk 0:02:58]} 5. Re1 {[%clk 0:03:01.2]} 5...
Nd6 {[%clk 0:02:57.6]} 6. Nxe5 {[%clk 0:03:01.3]} 6... Be7 {[%clk 0:02:57.5]} 7.
Bf1 {[%clk 0:03:00.4]} 7... Nxe5 {[%clk 0:02:57.1]} 8. Rxe5 {[%clk 0:03:01.1]}
8... O-O {[%clk 0:02:58.6]} 9. d4 {[%clk 0:03:02.3]} 9... Ne8 {[%clk 0:02:51.1]}
10. d5 {[%clk 0:03:02.7]} 10... d6 {[%clk 0:02:46.1]} 11. Re1 {[%clk 0:03:03.4]}
11... Nf6 {[%clk 0:02:45.6]} 12. Nc3 {[%clk 0:02:48.4]} 12... a6 {[%clk
0:02:19.6]} 13. h3 {[%clk 0:02:46.7]} 13... Bf5 {[%clk 0:02:16.7]} 14. Bf4
{[%clk 0:02:43.7]} 14... Qd7 {[%clk 0:02:16.1]} 15. Bd3 {[%clk 0:02:30.2]} 15...
Rfe8 {[%clk 0:02:04]} 16. Qf3 {[%clk 0:02:30.4]} 16... Bxd3 {[%clk 0:01:55.3]}
17. Qxd3 {[%clk 0:02:32.3]} 17... Bf8 {[%clk 0:01:52]} 18. Bg5 {[%clk
0:02:27.5]} 18... Rxe1+ {[%clk 0:01:52.5]} 19. Rxe1 {[%clk 0:02:27.8]} 19... Re8
{[%clk 0:01:53.7]} 20. Re3 {[%clk 0:02:00.2]} 20... Rxe3 {[%clk 0:01:33.4]} 21.
Qxe3 {[%clk 0:02:00.3]} 21... Ne8 {[%clk 0:00:57.4]} 22. Qa7 {[%clk 0:01:30.6]}
22... Qc8 {[%clk 0:00:47.3]} 23. a4 {[%clk 0:01:19.2]} 23... h6 {[%clk
0:00:48.3]} 24. Be3 {[%clk 0:01:19.2]} 24... Be7 {[%clk 0:00:39]} 25. a5 {[%clk
0:01:13.9]} 25... Bf6 {[%clk 0:00:39.4]} 26. Bd4 {[%clk 0:01:13.6]} 26... Kh7
{[%clk 0:00:28.9]} 27. Ne4 {[%clk 0:01:05.6]} 27... Bxd4 {[%clk 0:00:19.1]} 28.
Qxd4 {[%clk 0:01:07.5]} 28... Qf5 {[%clk 0:00:20.3]} 29. c4 {[%clk 0:00:55.7]}
29... Nf6 {[%clk 0:00:20]} 30. Nxf6+ {[%clk 0:00:56.5]} 30... gxf6 {[%clk
0:00:21.9]} 31. Qc3 {[%clk 0:00:34.4]} 31... Qe5 {[%clk 0:00:16.5]} 32. Qb4
{[%clk 0:00:33.3]} 32... Qe2 {[%clk 0:00:06.2]} 33. g3 {[%clk 0:00:30.5]} 33...
Qd1+ {[%clk 0:00:05.7]} 34. Kg2 {[%clk 0:00:30.6]} 34... Qc2 {[%clk 0:00:07]}
35. b3 {[%clk 0:00:30.7]} 35... Qe4+ {[%clk 0:00:06]} 36. Kg1 {[%clk 0:00:32]}
36... Qb1+ {[%clk 0:00:05.9]} 37. Kh2 {[%clk 0:00:31.6]} 37... Qf1 {[%clk
0:00:06.4]} 38. Qd2 {[%clk 0:00:31.5]} 38... Kg7 {[%clk 0:00:07.6]} 39. Qf4
{[%clk 0:00:24.9]} 39... Qd3 {[%clk 0:00:08.3]} 40. Qg4+ {[%clk 0:00:24.7]}
40... Kh7 {[%clk 0:00:09.4]} 41. Qd7 {[%clk 0:00:22.3]} 41... Kg7 {[%clk
0:00:08.6]} 42. Qxc7 {[%clk 0:00:21.1]} 42... Qxb3 {[%clk 0:00:09.7]} 43. Qxd6
{[%clk 0:00:19.4]} 43... Qxc4 {[%clk 0:00:10.8]} 44. Qd7 {[%clk 0:00:18.1]}
44... h5 {[%clk 0:00:06.7]} 45. Qf5 {[%clk 0:00:17.5]} 45... Qd4 {[%clk
0:00:07.1]} 46. g4 {[%clk 0:00:14.5]} 46... h4 {[%clk 0:00:05.1]} 47. Kg2 {[%clk
0:00:14.9]} 47... b6 {[%clk 0:00:05.9]} 48. axb6 {[%clk 0:00:11.6]} 48... Qxb6
{[%clk 0:00:07.8]} 49. Qd3 {[%clk 0:00:07.4]} 49... Qd6 {[%clk 0:00:07.6]} 50.
Kf3 {[%clk 0:00:08.4]} 50... a5 {[%clk 0:00:08.8]} 51. Qc4 {[%clk 0:00:09.6]}
51... a4 {[%clk 0:00:09.4]} 52. Qxa4 {[%clk 0:00:09.3]} 52... Qxd5+ {[%clk
0:00:10.7]} 53. Qe4 {[%clk 0:00:11.2]} 53... Qd6 {[%clk 0:00:12.1]} 54. Qf4
{[%clk 0:00:12]} 54... Qd3+ {[%clk 0:00:12.5]} 55. Kg2 {[%clk 0:00:12.5]} 55...
Qd5+ {[%clk 0:00:13.5]} 56. Qf3 {[%clk 0:00:13.3]} 56... Qg5 {[%clk 0:00:14]}
57. Qe4 {[%clk 0:00:14.3]} 57... f5 {[%clk 0:00:14.2]} 58. Qe5+ {[%clk
0:00:15.2]} 58... Kg6 {[%clk 0:00:13]} 59. f4 {[%clk 0:00:15]} 59... Qf6 {[%clk
0:00:13.5]} 60. Qxf6+ {[%clk 0:00:08.1]} 60... Kxf6 {[%clk 0:00:15.4]} 61. Kf3
{[%clk 0:00:09.7]} 61... Ke6 {[%clk 0:00:10.7]} 62. Ke3 {[%clk 0:00:07.9]} 62...
fxg4 {[%clk 0:00:09.8]} 63. hxg4 {[%clk 0:00:09.8]} 63... Kd5 {[%clk 0:00:10.1]}
64. Kf3 {[%clk 0:00:09.8]} 64... Kd4 {[%clk 0:00:08.8]} 65. g5 {[%clk
0:00:07.8]} 65... h3 {[%clk 0:00:09.9]} 66. Kg3 {[%clk 0:00:07.8]} 66... Ke4
{[%clk 0:00:10.8]} 67. Kxh3 {[%clk 0:00:08.4]} 67... Kxf4 {[%clk 0:00:11.6]} 68.
Kh4 {[%clk 0:00:09.9]} 68... Kf5 {[%clk 0:00:12.5]} 69. Kh5 {[%clk 0:00:11.4]}
69... Kf4 {[%clk 0:00:13.8]} 70. g6 {[%clk 0:00:12.2]} 70... fxg6+ {[%clk
0:00:14.5]} 71. Kxg6 {[%clk 0:00:14.1]} 1/2-1/2

[Event "*** Titled Tuesday 3|2 Blitz"]
[Site "Chess.com"]
[Date "2015.02.24"]
[Round "5"]
[White "ViennaRocket"]
[Black "lukas_111111"]
[Result "0-1"]
[WhiteElo "2184"]
[BlackElo "2138"]
[TimeControl "180+2"]
[EndTime "11:55:28 PST"]
[Termination "lukas_111111 won by resignation"]

1. d4 {[%clk 0:03:00]} 1... Nf6 {[%clk 0:02:57.8]} 2. c4 {[%clk 0:03:00.3]} 2...
g6 {[%clk 0:02:58.3]} 3. Nc3 {[%clk 0:03:01.7]} 3... d5 {[%clk 0:02:59]} 4. cxd5
{[%clk 0:03:02.4]} 4... Nxd5 {[%clk 0:03:00.4]} 5. e4 {[%clk 0:03:04.1]} 5...
Nxc3 {[%clk 0:03:01.1]} 6. bxc3 {[%clk 0:03:06]} 6... Bg7 {[%clk 0:03:02.6]} 7.
Bc4 {[%clk 0:03:07.7]} 7... O-O {[%clk 0:03:02.8]} 8. Ne2 {[%clk 0:03:09.1]}
8... c5 {[%clk 0:03:03.5]} 9. O-O {[%clk 0:03:10.7]} 9... Nc6 {[%clk 0:03:04.4]}
10. Be3 {[%clk 0:03:11.4]} 10... b6 {[%clk 0:03:05.5]} 11. dxc5 {[%clk 0:03:10]}
11... Qc7 {[%clk 0:03:06.3]} 12. Nd4 {[%clk 0:03:08]} 12... Ne5 {[%clk
0:03:07.2]} 13. Nb5 {[%clk 0:03:07.8]} 13... Qb8 {[%clk 0:03:08.2]} 14. Bd5
{[%clk 0:03:06.5]} 14... Ng4 {[%clk 0:03:07.8]} 15. g3 {[%clk 0:02:54.8]} 15...
Nxe3 {[%clk 0:03:07.8]} 16. fxe3 {[%clk 0:02:56.5]} 16... a6 {[%clk 0:03:09.1]}
17. Bxa8 {[%clk 0:02:43.1]} 17... axb5 {[%clk 0:03:09.1]} 18. Bd5 {[%clk
0:02:38.9]} 18... e6 {[%clk 0:03:09.4]} 19. Bb3 {[%clk 0:02:37.7]} 19... bxc5
{[%clk 0:03:01.8]} 20. Rc1 {[%clk 0:02:27.6]} 20... Bb7 {[%clk 0:02:58.5]} 21.
Qd6 {[%clk 0:02:04.6]} 21... Qxd6 {[%clk 0:02:56.6]} 0-1

[Event "*** Titled Tuesday 3|2 Blitz"]
[Site "Chess.com"]
[Date "2015.02.24"]
[Round "5"]
[White "pedromartinez91"]
[Black "Imre91"]
[Result "1-0"]
[WhiteElo "2139"]
[BlackElo "2549"]
[TimeControl "180+2"]
[EndTime "11:55:43 PST"]
[Termination "pedromartinez91 won by resignation"]

1. e3 {[%clk 0:03:00]} 1... Nf6 {[%clk 0:02:56.8]} 2. c4 {[%clk 0:03:00.6]} 2...
g6 {[%clk 0:02:56.3]} 3. Nc3 {[%clk 0:03:00.4]} 3... Bg7 {[%clk 0:02:56.5]} 4.
Nf3 {[%clk 0:03:00.7]} 4... O-O {[%clk 0:02:57.9]} 5. Be2 {[%clk 0:02:59.4]}
5... c5 {[%clk 0:02:59.3]} 6. O-O {[%clk 0:03:00]} 6... b6 {[%clk 0:03:00.4]} 7.
d4 {[%clk 0:03:00.9]} 7... cxd4 {[%clk 0:02:56.9]} 8. exd4 {[%clk 0:02:59.6]}
8... d5 {[%clk 0:02:57.5]} 9. Ne5 {[%clk 0:03:00.6]} 9... Bb7 {[%clk 0:02:58.1]}
10. Bf3 {[%clk 0:03:01.3]} 10... Ne4 {[%clk 0:02:52.2]} 11. cxd5 {[%clk
0:02:58.6]} 11... Nxc3 {[%clk 0:02:52.3]} 12. bxc3 {[%clk 0:02:59.5]} 12... Bxd5
{[%clk 0:02:53.2]} 13. Re1 {[%clk 0:02:42]} 13... e6 {[%clk 0:02:48.2]} 14. Ba3
{[%clk 0:02:38.8]} 14... Re8 {[%clk 0:02:45.9]} 15. c4 {[%clk 0:02:37.9]} 15...
Bxf3 {[%clk 0:02:46.6]} 16. Qxf3 {[%clk 0:02:38.6]} 16... Bxe5 {[%clk
0:02:48.1]} 17. dxe5 {[%clk 0:02:37.3]} 17... Na6 {[%clk 0:02:42.7]} 18. Rad1
{[%clk 0:02:34.5]} 18... Qg5 {[%clk 0:02:41.3]} 19. Rd7 {[%clk 0:02:31.1]} 19...
Qf5 {[%clk 0:02:39.8]} 20. Qb7 {[%clk 0:02:16.2]} 20... Reb8 {[%clk 0:02:35.9]}
21. Qxa6 {[%clk 0:02:14.6]} 1-0

[Event "*** Titled Tuesday 3|2 Blitz"]
[Site "Chess.com"]
[Date "2015.02.24"]
[Round "5"]
[White "1random"]
[Black "ilmago"]
[Result "1-0"]
[WhiteElo "2025"]
[BlackElo "1902"]
[TimeControl "180+2"]
[EndTime "11:56:19 PST"]
[Termination "1random won by resignation"]

1. e4 {[%clk 0:03:00]} 1... c5 {[%clk 0:02:57.1]} 2. Nf3 {[%clk 0:02:58]} 2...
d6 {[%clk 0:02:58.6]} 3. d4 {[%clk 0:02:53]} 3... cxd4 {[%clk 0:03:00.5]} 4.
Nxd4 {[%clk 0:02:54.9]} 4... Nf6 {[%clk 0:03:00.8]} 5. Nc3 {[%clk 0:02:56.5]}
5... g6 {[%clk 0:03:00.7]} 6. Be3 {[%clk 0:02:57.2]} 6... Bg7 {[%clk 0:03:01.3]}
7. f3 {[%clk 0:02:58.8]} 7... O-O {[%clk 0:03:02]} 8. Qd2 {[%clk 0:03:00.2]}
8... Nc6 {[%clk 0:03:01.8]} 9. Bc4 {[%clk 0:03:01.7]} 9... Qc7 {[%clk
0:02:58.6]} 10. Bb3 {[%clk 0:03:01.7]} 10... Ne5 {[%clk 0:02:56.2]} 11. O-O-O
{[%clk 0:03:02.1]} 11... Nc4 {[%clk 0:02:56.6]} 12. Bxc4 {[%clk 0:03:02.8]}
12... Qxc4 {[%clk 0:02:58.5]} 13. Kb1 {[%clk 0:03:03.9]} 13... Be6 {[%clk
0:02:54.3]} 14. Nxe6 {[%clk 0:03:01.7]} 14... fxe6 {[%clk 0:02:53.1]} 15. Bh6
{[%clk 0:02:59.4]} 15... Bh8 {[%clk 0:02:42.9]} 16. Bxf8 {[%clk 0:02:59.3]}
16... Rxf8 {[%clk 0:02:42.8]} 17. Qd4 {[%clk 0:02:56.2]} 17... Qa6 {[%clk
0:02:36.2]} 18. Qd3 {[%clk 0:02:55.9]} 18... Qc6 {[%clk 0:02:32.9]} 19. Qb5
{[%clk 0:02:52.7]} 19... Qc7 {[%clk 0:02:33.3]} 20. Qb3 {[%clk 0:02:47.7]} 20...
a6 {[%clk 0:02:33.8]} 21. Qxe6+ {[%clk 0:02:47.8]} 21... Rf7 {[%clk 0:02:31.7]}
22. e5 {[%clk 0:02:40.9]} 22... dxe5 {[%clk 0:02:26.3]} 23. Ne4 {[%clk
0:02:42.1]} 23... Ne8 {[%clk 0:02:23.8]} 24. Ng5 {[%clk 0:02:38.6]} 24... Nd6
{[%clk 0:02:21.8]} 25. Nxf7 {[%clk 0:02:31.8]} 25... Nxf7 {[%clk 0:02:22]} 26.
Rd7 {[%clk 0:02:29.8]} 26... Qc5 {[%clk 0:02:11.7]} 27. Rxe7 {[%clk 0:02:29.9]}
1-0

[Event "*** Titled Tuesday 3|2 Blitz"]
[Site "Chess.com"]
[Date "2015.02.24"]
[Round "5"]
[White "Zvonokchess"]
[Black "LADIESGET2KNOWME"]
[Result "1-0"]
[WhiteElo "2491"]
[BlackElo "2299"]
[TimeControl "180+2"]
[EndTime "11:56:43 PST"]
[Termination "Zvonokchess won by checkmate"]

1. e4 {[%clk 0:02:51.5]} 1... e6 {[%clk 0:02:58.5]} 2. d4 {[%clk 0:02:52.3]}
2... d5 {[%clk 0:03:00.1]} 3. Nd2 {[%clk 0:02:53.3]} 3... Nf6 {[%clk 0:03:01.5]}
4. e5 {[%clk 0:02:54.4]} 4... Nfd7 {[%clk 0:03:03.1]} 5. c3 {[%clk 0:02:55.9]}
5... c5 {[%clk 0:03:04.7]} 6. f4 {[%clk 0:02:57.5]} 6... Nc6 {[%clk 0:03:06.2]}
7. Ndf3 {[%clk 0:02:59.1]} 7... Qb6 {[%clk 0:03:07]} 8. a3 {[%clk 0:02:59.5]}
8... Be7 {[%clk 0:03:07.5]} 9. h4 {[%clk 0:02:59.6]} 9... a5 {[%clk 0:02:52.7]}
10. b3 {[%clk 0:02:59.6]} 10... f6 {[%clk 0:02:47.4]} 11. Bd3 {[%clk 0:03:00.1]}
11... O-O {[%clk 0:02:47.2]} 12. Bxh7+ {[%clk 0:02:55.6]} 12... Kxh7 {[%clk
0:02:42.9]} 13. Ng5+ {[%clk 0:02:56.7]} 13... fxg5 {[%clk 0:02:32.9]} 14. hxg5+
{[%clk 0:02:57.1]} 14... Kg8 {[%clk 0:02:32.5]} 15. Qh5 {[%clk 0:02:21.4]} 15...
Rf5 {[%clk 0:01:54.4]} 16. Qh8+ {[%clk 0:02:22.1]} 16... Kf7 {[%clk 0:01:54.7]}
17. g6+ {[%clk 0:02:22.2]} 17... Kxg6 {[%clk 0:01:54.1]} 18. Qe8+ {[%clk
0:02:23.8]} 18... Rf7 {[%clk 0:01:51]} 19. f5+ {[%clk 0:02:25.3]} 19... exf5
{[%clk 0:01:48.1]} 20. Qh8 {[%clk 0:02:26.9]} 20... Nf6 {[%clk 0:01:27.8]} 21.
Rh6+ {[%clk 0:02:23.7]} 21... gxh6 {[%clk 0:01:19.8]} 22. Qxh6# {[%clk
0:02:25.6]} 1-0

[Event "*** Titled Tuesday 3|2 Blitz"]
[Site "Chess.com"]
[Date "2015.02.24"]
[Round "5"]
[White "Zlatan56"]
[Black "raskolnnikov"]
[Result "1-0"]
[WhiteElo "2515"]
[BlackElo "2281"]
[TimeControl "180+2"]
[EndTime "11:57:34 PST"]
[Termination "Zlatan56 won by resignation"]

1. e4 {[%clk 0:03:00]} 1... c5 {[%clk 0:02:58.9]} 2. Nf3 {[%clk 0:03:00]} 2...
Nc6 {[%clk 0:03:00.3]} 3. c3 {[%clk 0:02:58.3]} 3... Nf6 {[%clk 0:03:00.2]} 4.
e5 {[%clk 0:02:59.2]} 4... Nd5 {[%clk 0:03:01.4]} 5. Bc4 {[%clk 0:02:55.8]} 5...
e6 {[%clk 0:03:01.9]} 6. O-O {[%clk 0:02:55.3]} 6... Nb6 {[%clk 0:03:01.1]} 7.
Bb3 {[%clk 0:02:54.8]} 7... d5 {[%clk 0:03:02.4]} 8. exd6 {[%clk 0:02:54.8]}
8... Bxd6 {[%clk 0:03:03.2]} 9. d4 {[%clk 0:02:56.2]} 9... cxd4 {[%clk
0:03:03.6]} 10. cxd4 {[%clk 0:02:56.6]} 10... O-O {[%clk 0:03:02.7]} 11. Nc3
{[%clk 0:02:57.5]} 11... e5 {[%clk 0:02:56.4]} 12. Bg5 {[%clk 0:02:50.2]} 12...
Be7 {[%clk 0:02:44.4]} 13. Bxe7 {[%clk 0:02:41.6]} 13... Qxe7 {[%clk 0:02:46.3]}
14. Nxe5 {[%clk 0:02:34]} 14... Nxe5 {[%clk 0:02:45.2]} 15. Re1 {[%clk
0:02:34.7]} 15... Rd8 {[%clk 0:02:04.4]} 16. Rxe5 {[%clk 0:02:33.1]} 16... Qh4
{[%clk 0:01:51.4]} 17. Qf3 {[%clk 0:02:29.6]} 17... Qf6 {[%clk 0:01:39.5]} 18.
Qxf6 {[%clk 0:02:26.7]} 18... gxf6 {[%clk 0:01:41.4]} 19. Re7 {[%clk 0:02:27.5]}
19... Rxd4 {[%clk 0:01:30.4]} 20. Rxf7 {[%clk 0:02:24.6]} 20... Kh8 {[%clk
0:00:52.4]} 21. Rxf6 {[%clk 0:02:16]} 21... Bd7 {[%clk 0:00:52.8]} 22. Re1
{[%clk 0:02:14.5]} 22... Re8 {[%clk 0:00:41.2]} 23. Rxe8+ {[%clk 0:02:12.9]} 1-0

[Event "*** Titled Tuesday 3|2 Blitz"]
[Site "Chess.com"]
[Date "2015.02.24"]
[Round "5"]
[White "gawk"]
[Black "Colombiano07"]
[Result "1-0"]
[WhiteElo "2054"]
[BlackElo "2005"]
[TimeControl "180+2"]
[EndTime "11:58:47 PST"]
[Termination "gawk won by resignation"]

1. c4 {[%clk 0:02:55.2]} 1... b6 {[%clk 0:02:42]} 2. d4 {[%clk 0:02:55.3]} 2...
Bb7 {[%clk 0:02:43.9]} 3. f3 {[%clk 0:02:49.9]} 3... g6 {[%clk 0:02:44.5]} 4. e4
{[%clk 0:02:50.9]} 4... Bg7 {[%clk 0:02:46.4]} 5. Nc3 {[%clk 0:02:52.4]} 5... e6
{[%clk 0:02:48.3]} 6. Be3 {[%clk 0:02:53.9]} 6... Ne7 {[%clk 0:02:50.2]} 7. Qd2
{[%clk 0:02:55.3]} 7... h6 {[%clk 0:02:52]} 8. Bd3 {[%clk 0:02:55.5]} 8... d6
{[%clk 0:02:53.7]} 9. Nge2 {[%clk 0:02:56.6]} 9... a6 {[%clk 0:02:55.4]} 10. O-O
{[%clk 0:02:53.7]} 10... Nd7 {[%clk 0:02:57.1]} 11. b4 {[%clk 0:02:53.9]} 11...
c5 {[%clk 0:02:57.8]} 12. dxc5 {[%clk 0:02:52.4]} 12... dxc5 {[%clk 0:02:57.1]}
13. Rfd1 {[%clk 0:02:30.5]} 13... Qc7 {[%clk 0:02:36.4]} 14. Rab1 {[%clk
0:02:29.2]} 14... Rd8 {[%clk 0:02:32.3]} 15. Qc1 {[%clk 0:02:28]} 15... cxb4
{[%clk 0:02:29.7]} 16. Rxb4 {[%clk 0:02:27.1]} 16... Nc5 {[%clk 0:02:31.4]} 17.
Bc2 {[%clk 0:02:24.2]} 17... Rxd1+ {[%clk 0:02:29.4]} 18. Nxd1 {[%clk
0:02:19.5]} 18... g5 {[%clk 0:02:27.8]} 19. Nf2 {[%clk 0:02:18.2]} 19... O-O
{[%clk 0:02:28.1]} 20. Qb1 {[%clk 0:02:13.9]} 20... Nc8 {[%clk 0:02:04.4]} 21.
Bd4 {[%clk 0:02:04.8]} 21... Rd8 {[%clk 0:02:01.6]} 22. Bxg7 {[%clk 0:02:04.7]}
22... Kxg7 {[%clk 0:02:03.5]} 23. Ng4 {[%clk 0:02:03.8]} 23... f6 {[%clk
0:01:40.2]} 24. Ng3 {[%clk 0:01:56]} 24... Rd4 {[%clk 0:01:20.9]} 25. e5 {[%clk
0:01:56.4]} 25... f5 {[%clk 0:01:20.8]} 26. Bxf5 {[%clk 0:01:55.7]} 26... Rxg4
{[%clk 0:01:06.8]} 27. Bxg4 {[%clk 0:01:55.9]} 27... Qxe5 {[%clk 0:01:07.6]} 28.
Bh5 {[%clk 0:01:39.4]} 28... Qf6 {[%clk 0:00:58.8]} 29. Be8 {[%clk 0:01:19.5]}
29... Nd6 {[%clk 0:00:55.1]} 30. Nh5+ {[%clk 0:01:19.4]} 1-0

[Event "*** Titled Tuesday 3|2 Blitz"]
[Site "Chess.com"]
[Date "2015.02.24"]
[Round "5"]
[White "Rijeka1999"]
[Black "facu57"]
[Result "1-0"]
[WhiteElo "2261"]
[BlackElo "2045"]
[TimeControl "180+2"]
[EndTime "11:59:22 PST"]
[Termination "Rijeka1999 won by resignation"]

1. e4 {[%clk 0:03:00]} 1... c6 {[%clk 0:02:58.7]} 2. d4 {[%clk 0:03:00.3]} 2...
d5 {[%clk 0:02:59.6]} 3. Nc3 {[%clk 0:03:00.8]} 3... dxe4 {[%clk 0:03:00.9]} 4.
Nxe4 {[%clk 0:03:01.9]} 4... Nf6 {[%clk 0:03:02.8]} 5. Ng3 {[%clk 0:03:01.3]}
5... Bg4 {[%clk 0:03:02.8]} 6. Be2 {[%clk 0:03:00.8]} 6... Bxe2 {[%clk
0:03:00.7]} 7. N1xe2 {[%clk 0:03:01.8]} 7... Nbd7 {[%clk 0:03:01]} 8. Bg5 {[%clk
0:02:58.7]} 8... e5 {[%clk 0:03:01.7]} 9. dxe5 {[%clk 0:02:59]} 9... Qa5+ {[%clk
0:03:01.5]} 10. Qd2 {[%clk 0:02:55.6]} 10... Qxe5 {[%clk 0:03:02.2]} 11. O-O
{[%clk 0:02:50.3]} 11... h5 {[%clk 0:02:57.3]} 12. Rfe1 {[%clk 0:02:47.4]} 12...
O-O-O {[%clk 0:02:57.7]} 13. Nc3 {[%clk 0:02:40.8]} 13... Qa5 {[%clk 0:02:52.6]}
14. a3 {[%clk 0:02:32.3]} 14... h4 {[%clk 0:02:49.5]} 15. Nge4 {[%clk
0:02:27.9]} 15... Nc5 {[%clk 0:02:38.4]} 16. Qf4 {[%clk 0:02:26.8]} 16... Ncxe4
{[%clk 0:02:37.7]} 17. Nxe4 {[%clk 0:02:26]} 17... Nxe4 {[%clk 0:02:34.2]} 18.
Bxd8 {[%clk 0:02:19.2]} 18... Qxd8 {[%clk 0:02:34.6]} 19. Qxe4 {[%clk
0:02:17.2]} 19... Bd6 {[%clk 0:02:24.2]} 20. Rad1 {[%clk 0:02:13.7]} 20... f6
{[%clk 0:02:21.2]} 21. Qe6+ {[%clk 0:02:12.6]} 21... Kc7 {[%clk 0:02:22.6]} 22.
Qf7+ {[%clk 0:02:13]} 22... Kb6 {[%clk 0:02:23.6]} 23. Rd3 {[%clk 0:02:11.1]}
23... Qc7 {[%clk 0:02:12.4]} 24. Qxc7+ {[%clk 0:02:03.8]} 24... Kxc7 {[%clk
0:02:12.4]} 25. h3 {[%clk 0:02:03.4]} 25... a5 {[%clk 0:02:12]} 26. Kf1 {[%clk
0:02:03.9]} 26... Rf8 {[%clk 0:02:09.8]} 27. Re6 {[%clk 0:02:03.9]} 27... Be5
{[%clk 0:02:09]} 28. Re7+ {[%clk 0:02:02.8]} 28... Kb6 {[%clk 0:02:07.3]} 29.
Rxg7 {[%clk 0:02:03.1]} 29... a4 {[%clk 0:02:08.4]} 30. b3 {[%clk 0:02:03.6]}
30... c5 {[%clk 0:02:03.7]} 31. bxa4 {[%clk 0:02:02.1]} 31... c4 {[%clk
0:02:04.8]} 32. Rdd7 {[%clk 0:02:03]} 32... Rb8 {[%clk 0:02:04.3]} 33. Ke2
{[%clk 0:01:59.6]} 33... Kc6 {[%clk 0:02:05.5]} 34. Rde7 {[%clk 0:01:56.5]}
34... Ra8 {[%clk 0:02:04.3]} 35. Rxb7 {[%clk 0:01:55.1]} 35... Rxa4 {[%clk
0:02:02.9]} 36. Rb4 {[%clk 0:01:56.1]} 36... Rxa3 {[%clk 0:02:03.1]} 37. Rxc4+
{[%clk 0:01:56.4]} 37... Kd5 {[%clk 0:02:05]} 38. Rxh4 {[%clk 0:01:56.5]} 38...
Ra2 {[%clk 0:02:05]} 39. Kf3 {[%clk 0:01:53.1]} 39... Rxc2 {[%clk 0:02:05.4]}
40. g3 {[%clk 0:01:52.1]} 40... Rc3+ {[%clk 0:02:05]} 41. Kg2 {[%clk 0:01:53]}
41... Rc2 {[%clk 0:02:06.5]} 42. Rh5 {[%clk 0:01:53.1]} 42... Ke4 {[%clk
0:02:07.1]} 43. Rxe5+ {[%clk 0:01:53.5]} 43... Kxe5 {[%clk 0:02:08.1]} 44. h4
{[%clk 0:01:54.6]} 44... Rc4 {[%clk 0:02:07.4]} 45. h5 {[%clk 0:01:54.2]} 45...
f5 {[%clk 0:02:08.8]} 46. Rg6 {[%clk 0:01:51.5]} 46... Rc7 {[%clk 0:02:07.7]}
47. f4+ {[%clk 0:01:50.6]} 47... Ke4 {[%clk 0:02:08.1]} 48. h6 {[%clk
0:01:51.8]} 48... Rh7 {[%clk 0:02:07.4]} 49. Kh3 {[%clk 0:01:52.6]} 49... Kf3
{[%clk 0:02:08.7]} 50. Kh4 {[%clk 0:01:53.7]} 50... Rd7 {[%clk 0:02:09.7]} 51.
Rg7 {[%clk 0:01:53.6]} 51... Rd1 {[%clk 0:02:10.7]} 52. h7 {[%clk 0:01:53.7]}
52... Rh1+ {[%clk 0:02:11.5]} 53. Kg5 {[%clk 0:01:54.9]} 53... Kxg3 {[%clk
0:02:12.9]} 54. Kxf5+ {[%clk 0:01:56.1]} 54... Kf3 {[%clk 0:02:14.5]} 55. Kg6
{[%clk 0:01:56.5]} 55... Rg1+ {[%clk 0:02:15]} 56. Kf7 {[%clk 0:01:56.2]} 56...
Rh1 {[%clk 0:02:15.8]} 57. Kg8 {[%clk 0:01:57.4]} 57... Kxf4 {[%clk 0:02:17.7]}
58. h8=Q {[%clk 0:01:57.9]} 58... Ra1 {[%clk 0:02:19.6]} 1-0

[Event "*** Titled Tuesday 3|2 Blitz"]
[Site "Chess.com"]
[Date "2015.02.24"]
[Round "5"]
[White "Kacparov"]
[Black "FlySooHigh"]
[Result "1-0"]
[WhiteElo "2436"]
[BlackElo "2334"]
[TimeControl "180+2"]
[EndTime "11:59:37 PST"]
[Termination "Kacparov won by resignation"]

1. e4 {[%clk 0:03:00]} 1... d5 {[%clk 0:02:58.3]} 2. exd5 {[%clk 0:02:58.9]}
2... Nf6 {[%clk 0:02:58.6]} 3. d4 {[%clk 0:02:59.1]} 3... Nxd5 {[%clk
0:02:59.1]} 4. Nf3 {[%clk 0:03:00.4]} 4... g6 {[%clk 0:02:59.3]} 5. c4 {[%clk
0:02:59.5]} 5... Nb6 {[%clk 0:02:59.8]} 6. Be3 {[%clk 0:03:00.5]} 6... Bg7
{[%clk 0:03:00.2]} 7. h3 {[%clk 0:03:00.6]} 7... O-O {[%clk 0:03:00.4]} 8. Nc3
{[%clk 0:03:01.3]} 8... Nc6 {[%clk 0:03:00.8]} 9. Be2 {[%clk 0:02:56.7]} 9... e5
{[%clk 0:03:00.8]} 10. d5 {[%clk 0:02:57.1]} 10... Ne7 {[%clk 0:03:01.2]} 11.
O-O {[%clk 0:02:57.7]} 11... Nf5 {[%clk 0:03:01.6]} 12. Bc5 {[%clk 0:02:57.8]}
12... Re8 {[%clk 0:03:01.9]} 13. Ne4 {[%clk 0:02:47.6]} 13... Nd6 {[%clk
0:02:59]} 14. Nxd6 {[%clk 0:02:46.8]} 14... cxd6 {[%clk 0:03:00.9]} 15. Ba3
{[%clk 0:02:44.9]} 15... Qc7 {[%clk 0:02:57.8]} 16. Rc1 {[%clk 0:02:45.2]} 16...
Nd7 {[%clk 0:02:55.5]} 17. Ne1 {[%clk 0:02:18.4]} 17... b6 {[%clk 0:02:45.8]}
18. Nd3 {[%clk 0:02:17.2]} 18... a5 {[%clk 0:02:45]} 19. Ne1 {[%clk 0:02:07.2]}
19... Nc5 {[%clk 0:02:35.7]} 20. Nc2 {[%clk 0:02:06.3]} 20... Bd7 {[%clk
0:02:27.7]} 21. b3 {[%clk 0:02:07.2]} 21... f5 {[%clk 0:02:23]} 22. Bb2 {[%clk
0:02:07.8]} 22... Re7 {[%clk 0:02:20.6]} 23. Na3 {[%clk 0:02:07.9]} 23... Rf8
{[%clk 0:02:13.6]} 24. Nb5 {[%clk 0:02:03]} 24... Bxb5 {[%clk 0:01:24.7]} 25.
cxb5 {[%clk 0:02:04.9]} 25... Qd8 {[%clk 0:01:13.9]} 26. a3 {[%clk 0:02:04.7]}
26... Bh6 {[%clk 0:01:11.8]} 27. Rc3 {[%clk 0:01:54.9]} 27... e4 {[%clk
0:00:54.4]} 28. b4 {[%clk 0:01:55.7]} 28... axb4 {[%clk 0:00:55.3]} 29. axb4
{[%clk 0:01:56.6]} 29... Nd7 {[%clk 0:00:57.2]} 30. Rc6 {[%clk 0:01:57.4]} 30...
Ne5 {[%clk 0:00:56.4]} 31. Bxe5 {[%clk 0:01:49.1]} 31... Rxe5 {[%clk 0:00:53.8]}
32. Qd4 {[%clk 0:01:50.1]} 32... e3 {[%clk 0:00:44.9]} 33. f3 {[%clk 0:01:47.1]}
33... Kh8 {[%clk 0:00:32.2]} 34. f4 {[%clk 0:01:48.1]} 34... Bg7 {[%clk
0:00:30.3]} 35. fxe5 {[%clk 0:01:48.9]} 35... Bxe5 {[%clk 0:00:32.2]} 36. Qxe3
{[%clk 0:01:44.8]} 36... Qf6 {[%clk 0:00:32.8]} 37. Kh1 {[%clk 0:01:44.7]} 37...
Bd4 {[%clk 0:00:33.5]} 38. Qe6 {[%clk 0:01:44.4]} 38... Qh4 {[%clk 0:00:32.1]}
39. Qxd6 {[%clk 0:01:43.6]} 1-0